bitfinex-derivatives/quotes_BNBF0:USTF0_20250424
["timestamp","ask_amount","ask_price","bid_price","bid_amount"]
[1745502502909,0.2734533,598.07,596.52,2.787]
[1745502503209,0.2734533,598.06,596.52,2.787]
[1745502503408,0.2734533,598.05,596.52,2.787]
[1745502503610,0.2734533,598.04,596.52,2.787]
[1745502503807,0.2734533,598.03,596.52,2.787]
[1745502504011,0.2734533,598.02,596.52,2.787]
[1745502504312,0.2734533,598.01,596.52,2.787]
[1745502504517,0.2734533,598.0,596.52,2.787]
[1745502504711,0.29147926,598.11,596.52,2.787]
[1745502505007,1.27175534,598.28,596.52,2.787]
[1745502505316,0.29147804,598.1,596.52,2.787]
[1745502505506,1.27175534,598.28,596.52,2.787]
[1745502505716,0.27347343,598.27,596.52,2.787]
[1745502505906,0.27347343,598.26,596.52,2.787]
[1745502506110,0.27347343,598.25,596.52,2.787]
[1745502506313,0.27347343,598.24,596.52,2.787]
[1745502506514,0.27347343,598.23,596.52,2.787]
[1745502506710,0.27347343,598.22,596.52,2.787]
[1745502506911,0.29147682,598.25,596.52,2.787]
[1745502507116,0.27347577,598.24,596.52,2.787]
[1745502507309,0.27347577,598.23,596.52,2.787]
[1745502507509,0.27347577,598.22,596.52,2.787]
[1745502507706,0.27347577,598.21,596.52,2.787]
[1745502508012,0.27347577,598.2,596.52,2.787]
[1745502508216,0.27347577,598.19,596.52,2.787]
[1745502508414,0.29147682,598.25,596.52,2.787]
[1745502508612,0.27348109,598.24,596.52,2.787]
[1745502508809,0.27348109,598.23,596.52,2.787]
[1745502509013,0.27348109,598.22,596.52,2.787]
[1745502509212,0.27348109,598.21,596.52,2.787]
[1745502509411,1.27175534,598.01,596.52,2.787]
[1745502509617,0.27348109,598.0,596.52,2.787]
[1745502509817,0.27348109,597.99,596.52,2.787]
[1745502510018,0.27343037,597.98,596.52,2.787]
[1745502510211,0.27343037,597.97,596.52,2.787]
[1745502510515,0.27343037,597.96,596.52,2.787]
[1745502510715,0.27343037,597.95,596.52,2.787]
[1745502510917,0.27343037,597.94,596.52,2.787]
[1745502511117,0.27343037,597.93,596.52,2.787]
[1745502511418,0.27343037,597.92,596.52,2.787]
[1745502511617,0.27343037,597.91,596.52,2.787]
[1745502511816,0.27343037,597.9,596.52,2.787]
[1745502512016,0.27343037,597.89,596.52,2.787]
[1745502512218,0.27343037,597.88,596.52,2.787]
[1745502512419,0.27343037,597.87,596.52,2.787]
[1745502512614,0.27343037,597.86,596.52,2.787]
[1745502512913,0.27343037,597.85,596.52,2.787]
[1745502513118,0.27343037,597.84,596.52,2.787]
[1745502513419,0.27343037,597.83,596.52,2.787]
[1745502513719,0.27343037,597.82,596.52,2.787]
[1745502514018,0.27343037,597.81,596.52,2.787]
[1745502514220,1.27175534,597.79,596.52,2.787]
[1745502514620,0.27343037,597.78,596.52,2.787]
[1745502515019,0.27343037,597.77,596.52,2.787]
[1745502515315,0.27343037,597.76,596.52,2.787]
[1745502515520,0.27343037,597.75,596.52,2.787]
[1745502515818,0.27343037,597.74,596.52,2.787]
[1745502516115,0.27343037,597.73,596.52,2.787]
[1745502516423,0.27343037,597.72,596.52,2.787]
[1745502516623,1.27175534,597.65,596.52,2.787]
[1745502516822,0.27343037,597.64,596.52,2.787]
[1745502517121,0.27343037,597.63,596.52,2.787]
[1745502517322,0.27343037,597.62,596.52,2.787]
[1745502517518,0.27344902,597.61,596.52,2.787]
[1745502517722,0.27344902,597.6,596.52,2.787]
[1745502517925,0.27344902,597.59,596.52,2.787]
[1745502518222,0.27344902,597.58,596.52,2.787]
[1745502518417,0.27344902,597.57,596.52,2.787]
[1745502518617,0.27344902,597.56,596.52,2.787]
[1745502518818,1.27175534,597.55,596.52,2.787]
[1745502519022,0.27347401,597.54,596.52,2.787]
[1745502519223,0.27347401,597.53,596.52,2.787]
[1745502519417,0.27347401,597.52,596.52,2.787]
[1745502519617,0.27347401,597.51,596.52,2.787]
[1745502519816,0.27347401,597.5,596.52,2.787]
[1745502520023,0.27347401,597.49,596.52,2.787]
[1745502520322,0.27347401,597.48,596.52,2.787]
[1745502520621,0.27347401,597.47,596.52,2.787]
[1745502520818,0.27347401,597.46,596.52,2.787]
[1745502521017,0.27347401,597.45,596.52,2.787]
[1745502521324,0.27347401,597.44,596.52,2.787]
[1745502521524,0.27347401,597.43,596.52,2.787]
[1745502521821,0.27347401,597.42,596.52,2.787]
[1745502522023,0.27347401,597.41,596.52,2.787]
[1745502522218,0.27347401,597.4,596.52,2.787]
[1745502522418,0.27347401,597.39,596.52,2.787]
[1745502522615,0.27347401,597.38,596.52,2.787]
[1745502522921,0.27347401,597.37,596.52,2.787]
[1745502523223,0.27347401,597.36,596.52,2.787]
[1745502523525,0.27347401,597.35,596.52,2.787]
[1745502523719,0.27347401,597.48,596.52,2.787]
[1745502524019,0.27347401,597.47,596.52,2.787]
[1745502524224,0.27347401,597.46,596.52,2.787]
[1745502524424,0.27347401,597.45,596.52,2.787]
[1745502524723,0.27347401,597.44,596.52,2.787]
[1745502524920,0.29162093,597.49,596.52,2.787]
[1745502525128,0.27362168,597.48,596.52,2.787]
[1745502525324,0.27362168,597.47,596.52,2.787]
[1745502525628,0.27362168,597.46,596.52,2.787]
[1745502525833,0.27362168,597.45,596.52,2.787]
[1745502526019,0.27362168,597.44,596.52,2.787]
[1745502526323,0.27362168,597.43,596.52,2.787]
[1745502526524,0.27363258,597.42,596.52,2.787]
[1745502526717,0.27363258,597.41,596.52,2.787]
[1745502526921,0.27363258,597.4,596.52,2.787]
[1745502527121,0.27363258,597.39,596.52,2.787]
[1745502527322,0.27363258,597.38,596.52,2.787]
[1745502527522,0.27363258,597.48,596.52,2.787]
[1745502527723,0.29162093,597.49,596.52,2.787]
[1745502527724,0.27363258,597.47,596.52,2.787]
[1745502528025,0.27363258,597.46,596.52,2.787]
[1745502528323,0.27363258,597.45,596.52,2.787]
[1745502528521,0.27363258,597.44,596.52,2.787]
[1745502529024,0.27363258,597.43,596.52,2.787]
[1745502529225,0.27363258,597.42,596.52,2.787]
[1745502529420,0.29161237,597.43,596.52,2.787]
[1745502529621,0.27361828,597.42,596.52,2.787]
[1745502529824,0.27361828,597.41,596.52,2.787]
[1745502530019,0.27361828,597.4,596.52,2.787]
[1745502530219,0.27361828,597.39,596.52,2.787]
[1745502530424,0.27361828,597.38,596.52,2.787]
[1745502530721,0.27361828,597.37,596.52,2.787]
[1745502530922,0.29161237,597.43,596.52,2.787]
[1745502531528,0.27361716,597.42,596.52,2.787]
[1745502532226,0.27361716,597.41,596.52,2.787]
[1745502532427,0.27361716,597.4,596.52,2.787]
[1745502532728,1.27175534,597.34,596.52,2.787]
[1745502533026,0.27361716,597.33,596.52,2.787]
[1745502534123,1.27175534,597.34,596.52,2.787]
[1745502534527,0.27366339,597.32,596.52,2.787]
[1745502534725,0.27366339,597.31,596.52,2.787]
[1745502534929,0.27366339,597.33,596.52,0.767]
[1745502535227,0.27366339,597.32,596.52,0.767]
[1745502535522,0.27366339,597.31,596.52,0.767]
[1745502535727,1.27175534,597.34,596.52,0.767]
[1745502535928,0.27365037,597.3,596.52,0.767]
[1745502536124,0.27365037,597.29,596.52,0.767]
[1745502536325,0.27365037,597.4,596.52,0.767]
[1745502536524,0.27365037,597.39,596.52,0.767]
[1745502536723,0.27365037,597.4,596.52,0.767]
[1745502537029,0.27365037,597.39,596.52,0.767]
[1745502537228,0.29161115,597.41,596.52,0.767]
[1745502537429,0.27363947,597.4,596.52,0.767]
[1745502537627,0.27363947,597.4,596.52,1.724]
[1745502537825,0.27363947,597.4,596.52,3.355]
[1745502538727,0.29161115,597.41,596.52,3.355]
[1745502538925,0.27364682,597.4,596.52,3.355]
[1745502540231,0.29161115,597.41,596.52,3.355]
[1745502540431,0.27364738,597.4,596.52,3.355]
[1745502541530,0.27364738,597.39,596.52,3.355]
[1745502541826,0.27364738,597.8,596.52,3.355]
[1745502542130,0.27364738,597.79,596.52,3.355]
[1745502542325,0.27364738,597.78,596.52,3.355]
[1745502542531,0.27364738,597.77,596.52,3.355]
[1745502542831,0.27365312,597.76,596.52,3.355]
[1745502543031,0.27365312,597.75,596.52,3.355]
[1745502543330,0.27365312,597.74,596.52,3.355]
[1745502543630,0.27365312,597.73,596.52,3.355]
[1745502543831,0.27365312,597.72,596.52,3.355]
[1745502544031,0.27365312,597.71,596.52,3.355]
[1745502544332,0.27365312,597.7,596.52,3.355]
[1745502544529,0.27365312,597.69,596.52,3.355]
[1745502544733,0.27365312,597.71,596.52,3.355]
[1745502544933,0.27365312,597.7,596.52,3.355]
[1745502545129,0.27365312,597.69,596.52,3.355]
[1745502545332,0.29158305,597.69,596.52,3.355]
[1745502545534,0.27365312,597.68,596.52,3.355]
[1745502545933,0.27365689,597.67,596.52,3.355]
[1745502546233,0.27365689,597.66,596.52,3.355]
[1745502546433,0.27365689,597.68,596.52,3.355]
[1745502546635,0.27365689,597.65,596.52,3.355]
[1745502546835,0.27365689,597.64,596.52,3.355]
[1745502547036,0.27365689,597.68,596.52,3.355]
[1745502547333,0.27365689,597.67,596.52,3.355]
[1745502547530,0.29158427,597.67,596.52,3.355]
[1745502547734,0.27365689,597.66,596.52,3.355]
[1745502549038,0.27365689,597.65,596.52,2.30684451]
[1745502549240,0.27365689,597.64,596.52,0.21049338]
[1745502549539,0.27365689,597.63,595.69,0.29164292]
[1745502549739,0.27365689,597.62,595.69,0.29164292]
[1745502549941,0.27365689,597.61,595.69,0.29164292]
[1745502550237,0.27365689,597.6,595.69,0.29164292]
[1745502550442,0.29158427,597.67,595.31,1.06112793]
[1745502550648,0.27351287,597.66,595.53,0.29184348]
[1745502550843,0.27351287,597.65,595.53,0.29184348]
[1745502551145,0.27351287,597.64,595.31,1.06112793]
[1745502551345,0.27351287,597.63,595.32,0.97362579]
[1745502551546,0.27351287,597.62,595.33,0.97362579]
[1745502551743,0.27351287,597.61,595.34,0.6653861]
[1745502552045,1.27175534,597.47,595.35,0.6653861]
[1745502552241,0.27351287,597.46,595.36,0.6653861]
[1745502552445,0.27351287,597.45,595.37,0.6653861]
[1745502552644,0.27351287,597.44,595.38,0.6653861]
[1745502552845,0.27351287,597.43,595.39,0.6653861]
[1745502553046,0.27351287,597.42,595.4,0.6653861]
[1745502553241,0.27351287,597.41,595.41,0.6653861]
[1745502553445,0.27351287,597.41,595.42,0.6653861]
[1745502553643,0.27351287,597.4,595.43,0.97362709]
[1745502553842,0.27351287,597.39,595.44,0.97362709]
[1745502554041,0.27351287,597.38,595.45,0.97362709]
[1745502554246,1.27175534,597.14,595.46,0.97362709]
[1745502554445,0.27351287,597.13,595.47,0.97362709]
[1745502554641,0.27351287,597.13,595.48,0.6653861]
[1745502554949,1.27175534,597.14,595.49,0.6653861]
[1745502555144,0.2733876,597.13,595.5,0.6653861]
[1745502555344,0.2733876,597.13,595.51,0.6653861]
[1745502555551,0.2733876,597.13,595.52,0.6653861]
[1745502555744,0.2733876,597.13,595.53,0.6653861]
[1745502555948,0.2733876,597.13,595.54,0.6653861]
[1745502556248,0.2733876,597.13,595.55,0.6653861]
[1745502556453,1.27175534,597.14,595.56,0.6653861]
[1745502556754,0.27340698,597.12,595.57,0.6653861]
[1745502556954,0.27340698,597.11,595.58,0.6653861]
[1745502557145,0.27340698,597.66,595.59,0.6653861]
[1745502557350,0.27340698,597.1,595.6,0.6653861]
[1745502557549,0.27340698,597.09,595.61,0.6653861]
[1745502557852,1.27175534,597.84,595.62,0.6653861]
[1745502557853,0.27340698,597.08,595.62,0.6653861]
[1745502558049,0.27344699,597.07,595.63,0.6653861]
[1745502558250,0.29173094,597.08,595.64,0.6639115]
[1745502558447,0.27344699,597.07,595.65,0.6639115]
[1745502558659,0.29173094,597.08,595.34,0.29184225]
[1745502558845,0.29173094,597.08,595.35,0.66396359]
[1745502559050,1.27175534,597.84,595.36,0.66396359]
[1745502559251,0.27343597,597.07,595.37,0.66396359]
[1745502559455,0.27343597,597.83,595.38,0.66396359]
[1745502559753,1.27175534,597.84,595.39,0.66396359]
[1745502559957,0.27344292,597.82,595.4,0.66396359]
[1745502560251,0.27344292,597.81,595.41,0.66396359]
[1745502560447,0.27344292,598.21,595.42,0.66396359]
[1745502560652,0.29170404,597.8,595.43,0.66396359]
[1745502560849,0.27344292,597.79,595.44,0.97211151]
[1745502561048,0.27344292,597.78,595.45,0.97211151]
[1745502561253,0.27350558,597.77,595.46,0.97211355]
[1745502561450,0.27350558,597.76,595.47,0.97211355]
[1745502561650,0.27350558,597.75,595.48,0.97211355]
[1745502561851,0.27350558,597.74,595.49,0.97211355]
[1745502562054,1.27175534,598.22,595.5,0.97211355]
[1745502562055,0.27350558,597.73,595.5,0.97211355]
[1745502562355,0.27350558,597.72,595.51,0.97211355]
[1745502562559,0.27350558,597.72,595.52,0.66396359]
[1745502562756,0.29168081,597.74,595.53,0.30814996]
[1745502562757,0.27350558,597.71,595.53,0.30814996]
[1745502562960,0.27350558,597.7,595.54,0.66396359]
[1745502563255,0.27350558,597.69,595.55,0.30814996]
[1745502563456,0.27350558,597.68,595.56,0.66396359]
[1745502563756,0.27350558,597.67,595.56,0.66396359]
[1745502564057,0.27350558,597.66,595.57,0.97208117]
[1745502564256,0.27354329,597.65,595.58,0.97207836]
[1745502564449,0.27354329,597.65,595.59,0.66396359]
[1745502564651,0.27354329,597.64,595.6,0.30811477]
[1745502564854,0.27354329,597.63,595.61,0.66396359]
[1745502565051,0.27354329,597.62,595.62,0.30811477]
[1745502565259,1.27175534,597.96,595.25,0.915]
[1745502565260,0.27354329,597.61,595.63,0.66396359]
[1745502565456,0.27354329,597.61,595.48,0.29172605]
[1745502565757,0.27354329,597.6,595.49,0.66438387]
[1745502565950,0.27354329,597.59,595.5,0.66438387]
[1745502566152,0.27354329,597.58,595.51,0.66438387]
[1745502566349,0.27354329,597.57,595.52,0.66438387]
[1745502566553,0.27354329,597.56,595.53,0.66438387]
[1745502566751,0.27354329,597.55,595.54,0.66438387]
[1745502566955,0.27354329,597.54,595.48,0.29172605]
[1745502567153,0.27354329,597.53,595.49,0.66442222]
[1745502567351,0.29172605,597.62,595.5,0.66442222]
[1745502567653,0.27354201,597.61,595.51,0.66442222]
[1745502567852,0.27354201,597.6,595.52,0.66442222]
[1745502568050,0.27354201,597.59,595.53,0.66442222]
[1745502568254,0.27354201,597.58,595.25,0.915]
[1745502568455,0.27354201,597.57,595.26,0.97247532]
[1745502568650,0.27354201,597.56,595.27,0.97247532]
[1745502568855,0.29177863,597.59,595.28,0.66425573]
[1745502569056,0.27354599,597.58,595.29,0.97247532]
[1745502569257,0.27354599,597.57,595.3,0.97247532]
[1745502569453,0.29177863,597.59,595.31,0.66425573]
[1745502569655,0.29177863,597.59,595.32,0.66425573]
[1745502569855,0.29177863,597.59,595.33,0.66425573]
[1745502570058,0.27353911,597.58,595.34,0.97246777]
[1745502570360,0.27353911,597.57,595.35,0.66425573]
[1745502570558,0.29177863,597.59,595.35,0.66425573]
[1745502570755,0.27354093,597.58,595.36,0.97247728]
[1745502570955,0.27354093,597.57,595.37,0.97247728]
[1745502571155,0.27354093,597.56,595.38,0.66425573]
[1745502571356,0.27354093,597.55,595.39,0.66425573]
[1745502571558,0.27354093,597.54,595.4,0.66425573]
[1745502571754,0.29181533,597.56,595.32,0.29181533]
[1745502571755,0.27354093,597.53,595.41,0.66425573]
[1745502571958,0.27354093,597.52,595.42,0.97247695]
[1745502572157,0.2735242,597.51,595.43,0.66425573]
[1745502572462,0.2735242,597.5,595.44,0.97247695]
[1745502572656,0.2735242,597.49,595.45,0.97247695]
[1745502572859,0.2735242,597.49,595.32,0.29181533]
[1745502572860,0.2735242,597.48,595.46,0.97247695]
[1745502573057,0.2735242,597.47,595.47,0.97247695]
[1745502573258,0.2735242,597.46,595.48,0.97247695]
[1745502573458,0.2735242,597.45,595.49,0.97247695]
[1745502573764,0.2735242,597.44,595.5,0.66425573]
[1745502573963,0.2735242,597.44,595.25,0.915]
[1745502573964,0.2735242,597.43,595.51,0.66425573]
[1745502574264,0.2735242,597.42,595.52,0.66425573]
[1745502574559,0.2735242,597.41,595.53,0.66425573]
[1745502574862,0.29177496,597.43,595.39,0.29177496]
[1745502574863,0.2735242,597.4,595.54,0.66425573]
[1745502575057,0.2735242,597.39,595.55,0.66425573]
[1745502575257,0.2735242,597.38,595.56,0.66425573]
[1745502575457,0.2735242,597.37,595.57,0.66425573]
[1745502575667,0.2735242,597.42,595.58,0.66425573]
[1745502575865,0.2735242,597.41,595.59,0.66425573]
[1745502576065,0.2735242,597.4,595.39,0.29177496]
[1745502576264,0.2735242,597.39,595.4,0.97205969]
[1745502576466,0.2735242,597.39,595.41,0.97205969]
[1745502576764,0.2735242,597.38,595.42,0.97205969]
[1745502576960,0.2735242,597.37,595.43,0.97205969]
[1745502577164,0.2735242,597.36,595.44,0.97205969]
[1745502577365,0.29180432,597.36,595.45,0.97205969]
[1745502577664,0.2735242,597.35,595.46,0.97205969]
[1745502577861,0.2735242,597.35,595.47,0.97205969]
[1745502578065,0.2735242,597.35,595.48,0.97205969]
[1745502578260,0.2735242,597.35,595.49,0.66386978]
[1745502578457,0.29180432,597.36,595.5,0.66386978]
[1745502578764,0.27358357,597.35,595.51,0.97205519]
[1745502578965,0.27358357,597.34,595.52,0.66386978]
[1745502579166,0.27358357,597.33,595.53,0.66386978]
[1745502579362,0.27358357,597.35,595.54,0.66386978]
[1745502579563,0.27358357,597.34,595.55,0.66386978]
[1745502579767,0.27358357,597.35,595.56,0.66386978]
[1745502579965,0.27358357,597.34,595.57,0.66386978]
[1745502580162,1.27175534,597.72,595.58,0.66386978]
[1745502580366,0.2736255,597.71,595.59,0.66386978]
[1745502580569,1.27175534,597.62,595.6,0.66386978]
[1745502580868,0.2736255,597.61,595.25,0.915]
[1745502581071,0.2736255,597.6,595.26,0.97198182]
[1745502581265,0.2736255,597.59,595.27,0.97198182]
[1745502581463,0.2736255,597.58,595.28,0.97198182]
[1745502581666,0.2736255,597.57,595.29,0.97198182]
[1745502581968,0.2736255,597.56,595.3,0.97198182]
[1745502582167,0.2736255,597.55,595.31,0.97198182]
[1745502582468,0.2736255,597.55,595.26,0.29180922]
[1745502582469,0.2736255,597.54,595.32,0.97198182]
[1745502582666,0.2736255,597.53,595.33,0.97198182]
[1745502582867,0.2736255,597.52,595.34,0.97198182]
[1745502583063,0.2736255,597.51,595.35,0.97198182]
[1745502583268,0.2736255,597.5,595.36,0.97198182]
[1745502583569,0.27364092,597.49,595.37,0.97198807]
[1745502583768,0.27364092,597.48,595.38,0.97198807]
[1745502583968,0.27364092,597.47,595.39,0.97198807]
[1745502584269,1.27175534,597.1,595.4,0.97198807]
[1745502584468,0.27364092,597.09,595.41,0.97198807]
[1745502584669,0.27364092,597.09,595.42,0.97198807]
[1745502584968,0.27364092,597.09,595.43,0.97198807]
[1745502585169,0.27364092,597.09,595.44,0.97198807]
[1745502585370,0.27364092,597.09,595.45,0.97198807]
[1745502585670,0.27364092,597.09,595.46,0.97198807]
[1745502585971,0.27364092,597.09,595.47,0.97198807]
[1745502586166,0.27364092,597.09,595.48,0.97198807]
[1745502586370,0.2918496,597.08,595.49,0.97198807]
[1745502586571,0.27364092,597.07,595.5,0.97198807]
[1745502586866,0.27364092,597.07,595.51,0.66380117]
[1745502587070,0.27364092,597.07,595.52,0.66380117]
[1745502587267,0.27364092,597.07,595.53,0.66380117]
[1745502587469,0.27364092,597.07,595.54,0.66380117]
[1745502587666,0.27364092,597.07,595.55,0.66380117]
[1745502587966,0.27364092,597.07,595.56,0.66380117]
[1745502588168,0.27364092,597.07,595.57,0.66380117]
[1745502588367,0.27364092,597.07,595.58,0.66380117]
[1745502588668,0.27364092,597.07,595.59,0.9719604]
[1745502588868,0.27364092,597.07,595.6,0.9719604]
[1745502589071,0.27364092,597.07,595.34,1.0968496]
[1745502589072,0.27364092,597.07,595.61,0.9719604]
[1745502589273,0.29177496,597.08,595.62,0.9719604]
[1745502589473,0.29177496,597.08,595.63,0.66380117]
[1745502589773,0.27367593,597.07,595.64,0.97195475]
[1745502589974,0.27367593,597.07,595.65,0.97195475]
[1745502590174,0.27367593,597.07,595.66,0.97195475]
[1745502590368,0.27367593,597.07,595.67,0.97195475]
[1745502590573,0.27367593,597.07,595.68,0.66380117]
[1745502590774,0.27367593,597.07,595.69,0.30815358]
[1745502590969,0.27367593,597.06,595.69,0.30815358]
[1745502591172,0.27367968,597.05,595.7,0.30815623]
[1745502591373,0.27367968,597.07,595.45,0.30815623]
[1745502591575,0.27367968,597.06,595.46,0.97219185]
[1745502591774,0.27367968,597.05,595.47,0.97219185]
[1745502591974,0.27367968,597.07,595.48,0.97219185]
[1745502592172,0.27367968,597.06,595.49,0.97219185]
[1745502592376,0.27367968,597.05,595.5,0.97219185]
[1745502592577,1.27175534,597.16,595.51,0.97219185]
[1745502592776,0.27367968,597.15,595.52,0.97219185]
[1745502592977,0.27367968,597.14,595.53,0.97219185]
[1745502593177,0.27367968,597.13,595.54,0.97219185]
[1745502593379,0.27367968,597.12,595.55,0.97219185]
[1745502593577,0.27367968,597.11,595.56,0.97219185]
[1745502593778,0.27367968,597.1,595.57,0.97219185]
[1745502594078,0.27367968,597.09,595.58,0.97219185]
[1745502594276,0.27367968,597.08,595.59,0.97219185]
[1745502594474,0.27367968,597.08,595.6,0.66403562]
[1745502594680,0.27367968,597.07,595.61,0.30815623]
[1745502594880,0.27367968,597.13,595.62,0.66403562]
[1745502595180,0.27367968,597.12,595.63,0.30815623]
[1745502595382,0.29181289,597.08,595.64,0.66403562]
[1745502595684,0.27367968,597.07,595.65,0.30815623]
[1745502595882,0.27367968,597.07,595.66,0.66403562]
[1745502596283,0.27367968,597.07,595.67,0.66403562]
[1745502596481,0.27367968,597.07,595.68,0.66403562]
[1745502596783,0.27367968,597.07,595.69,0.66403562]
[1745502596986,0.27367968,597.07,595.7,0.66403562]
[1745502597183,0.27367968,597.07,595.71,0.66403562]
[1745502597385,0.27367968,597.07,595.72,0.66403562]
[1745502597581,0.27367968,597.07,595.73,0.66403562]
[1745502597885,0.27367968,597.07,595.74,0.66403562]
[1745502598085,0.27367968,597.07,595.75,0.66403562]
[1745502598286,0.2917664,597.13,595.76,0.66403562]
[1745502598487,0.2917664,597.13,595.6,0.2917664]
[1745502598488,0.27367968,597.12,595.77,0.66403562]
[1745502598686,0.27367968,597.12,595.78,0.66403562]
[1745502598890,0.27371999,597.11,595.79,0.66403562]
[1745502599083,0.27371999,597.12,595.61,0.842]
[1745502599286,0.27371999,597.11,595.62,0.97317277]
[1745502599487,0.27371999,597.12,595.63,0.97317277]
[1745502599685,0.27371999,597.11,595.64,0.97317277]
[1745502599882,0.27371999,597.12,595.65,0.97334666]
[1745502600087,0.27371999,597.11,595.66,0.97334666]
[1745502600289,0.27371999,597.12,595.67,0.97334666]
[1745502600490,0.27371999,597.11,595.68,0.66522373]
[1745502600789,0.27371999,597.12,595.69,0.66522373]
[1745502600988,0.27371999,597.11,595.7,0.66522373]
[1745502601189,0.27371999,597.12,595.71,0.66522373]
[1745502601385,0.27371999,597.12,595.61,0.842]
[1745502601691,0.27371999,597.12,595.62,0.6652964]
[1745502601887,0.27371999,597.12,595.63,0.6652964]
[1745502602087,0.27371999,597.12,595.64,0.6652964]
[1745502602285,0.27371999,597.12,595.65,0.6652964]
[1745502602485,0.27371999,597.12,595.66,0.6652964]
[1745502602690,0.27371999,597.12,595.67,0.6652964]
[1745502602989,0.27371999,597.12,595.68,0.6652964]
[1745502603191,0.27371999,597.12,595.69,0.6652964]
[1745502603391,0.27371999,597.12,595.7,0.6652964]
[1745502603584,0.27371999,597.12,595.71,0.6652964]
[1745502603796,0.27371999,597.12,595.72,0.6652964]
[1745502604093,0.27371999,597.12,595.73,0.66574192]
[1745502604387,0.27371999,597.11,595.74,0.66594961]
[1745502604591,0.27371999,597.11,595.65,0.29178108]
[1745502604792,0.27371999,597.1,595.66,0.66597709]
[1745502605091,0.27371999,597.09,595.67,0.66597709]
[1745502605290,0.27371999,597.08,595.68,0.66597709]
[1745502605489,0.27371999,598.07,595.69,0.66597709]
[1745502605690,0.27371999,598.06,595.7,0.66597709]
[1745502605892,0.27371999,598.06,595.71,0.66597709]
[1745502606093,0.27376845,598.05,595.72,0.66597709]
[1745502606285,0.27376845,598.04,595.73,0.66597709]
[1745502606486,0.27376845,598.03,595.74,0.66597709]
[1745502606689,0.27376845,598.02,595.75,0.66597709]
[1745502606886,0.27376845,598.01,595.76,0.66597709]
[1745502607091,0.27376845,598.01,595.77,0.66597709]
[1745502607292,0.56545904,598.0,595.78,0.66678674]
[1745502607493,0.27376691,597.99,595.61,0.842]
[1745502607693,0.27376691,597.98,595.62,0.66680558]
[1745502607894,0.27376691,597.97,595.63,0.66680558]
[1745502608090,0.27376691,597.96,595.64,0.66680558]
[1745502608289,0.27376691,597.95,595.65,0.66680558]
[1745502608494,0.27376691,597.94,595.66,0.66680558]
[1745502608695,0.27376691,597.93,595.67,0.66680558]
[1745502608896,0.27376691,597.92,595.68,0.66680558]
[1745502609096,0.27377228,597.91,595.69,0.66680558]
[1745502609297,0.27377228,597.9,595.7,0.66680558]
[1745502609496,0.27377228,597.89,595.71,0.66680558]
[1745502609796,1.27175534,597.83,595.71,0.66680558]
[1745502609994,0.27377228,597.82,595.71,0.66680558]
[1745502610195,0.27377228,597.81,595.71,0.66680558]
[1745502610491,0.27377228,597.8,595.71,0.66680558]
[1745502610694,0.27377228,597.79,595.71,0.66680558]
[1745502610895,0.27377228,597.78,595.71,0.66680558]
[1745502611196,0.27377228,597.77,595.71,0.66680558]
[1745502611392,0.27377228,597.76,595.71,0.66680558]
[1745502611598,1.27175534,597.14,595.71,0.66680558]
[1745502611798,0.27377228,597.13,595.71,0.66680558]
[1745502611995,0.27377228,597.12,595.71,0.66680558]
[1745502612193,0.27377228,597.11,595.71,0.66680558]
[1745502612393,0.27377228,597.1,595.71,0.66680558]
[1745502612698,0.27377228,597.09,595.71,0.66680558]
[1745502612896,0.27377228,597.13,595.71,0.66680558]
[1745502613094,0.27377228,597.12,595.71,0.66680558]
[1745502613294,0.56556192,597.13,595.71,0.66680558]
[1745502613496,0.27377228,597.12,595.71,0.66680558]
[1745502613696,0.27378539,597.11,595.71,0.66680558]
[1745502613896,0.27378539,597.1,595.71,0.66680558]
[1745502614100,0.27378539,597.12,595.71,0.66680558]
[1745502614402,1.54554073,597.11,595.71,0.66680558]
[1745502614599,0.27378539,597.1,595.71,0.66680558]
[1745502615704,0.27378539,597.1,595.72,0.30813754]
[1745502615900,0.27378539,597.1,595.73,0.66680558]
[1745502616309,0.27378539,597.1,595.7,0.829]
[1745502616310,0.27378539,597.1,595.74,0.97493963]
[1745502616499,0.27378539,597.1,595.75,0.97493963]
[1745502616798,0.2737878,597.09,595.76,0.66680558]
[1745502617101,0.2737878,597.09,595.71,0.29179087]
[1745502617102,0.2737878,597.08,595.77,0.66680558]
[1745502617400,0.2737878,597.07,595.78,0.66680558]
[1745502617597,0.2737878,597.11,595.79,0.66680558]
[1745502617801,0.2737878,597.1,595.8,0.66680558]
[1745502618101,0.2737878,597.09,595.81,0.66680558]